Cogmind - Beta 15 *** ADVENTURER MODE // 2025.06.30 @ 17:25:02 Player: Gentle Jesus Result: Destroyed by G-34 Mercenary with Small Laser Performance ------------- Evolutions (0) 0 Regions Visited (2) 400 Robots Destroyed (20) 100 Value Destroyed (362) 362 Prototype IDs (0) 0 Alien Tech Used (0) 0 Bonus (0) 0 TOTAL SCORE: 862 Bonus ------- None Cogmind --------- Core Integrity 0/250 Matter 184/300 Energy 98/100 System Corruption 0% Temperature Cool (21) Movement Walking (120) Location -10/Mines Parts ------- > --- POWER (1) -------- (None) > --- PROPULSION (2) --- Aluminum Leg Aluminum Leg > --- UTILITY (2) ------ Medium Storage Unit Weapon Shielding > --- WEAPON (2) ------- Light Assault Rifle Grenade Launcher > --- INVENTORY (10) --- Small Storage Unit Improved Terrain Scanner Mining Laser Peak State ------------ > --- POWER ------------ Light Ion Engine > --- PROPULSION ------- Aluminum Leg Aluminum Leg > --- UTILITY ---------- Medium Storage Unit Seismic Detector > --- WEAPON ----------- EM Pulse Gun Grenade Launcher > --- INVENTORY -------- Aluminum Leg Aluminum Leg Small Storage Unit Improved Terrain Scanner Weapon Shielding Light Assault Rifle Grenade Launcher Mining Laser [Rating: 8] Favorites ----------- Power Light Ion Engine Engine Light Ion Engine Propulsion Aluminum Leg Leg Aluminum Leg Utility Seismic Detector Device Seismic Detector Storage Medium Storage Unit Protection Weapon Shielding Weapon EM Pulse Gun Energy Gun EM Pulse Gun Ballistic Gun Light Assault Rifle Launcher Grenade Launcher Build | -11 -10 -10 ------- Run | Yrd Mat Min Slots Evolved . | . . . Power . | . . . Propulsion . | . . . Utility . | . . . Weapon . | . . . Parts Attached 13 | 6 3 4 Power 1 | 1 . . Engine 1 | 1 . . Core . | . . . Reactor . | . . . Propulsion 4 | 2 . 2 Treads . | . . . Leg 4 | 2 . 2 Wheel . | . . . Hover . | . . . Flight . | . . . Utility 4 | 1 2 1 Device 1 | . 1 . Storage 2 | 1 1 . Processor . | . . . Hackware . | . . . Protection 1 | . . 1 Artifact . | . . . Weapon 4 | 2 1 1 Energy Gun 1 | 1 . . Energy Cannon . | . . . Ballistic Gun 1 | 1 . . Ballistic Cannon . | . . . Launcher 2 | . 1 1 Special Weapon . | . . . Impact Weapon . | . . . Slashing Weapon . | . . . Piercing Weapon . | . . . Special Melee Weapon . | . . . Unidentified Prototypes . | . . . Parts Lost 6 | . . 6 Power 1 | . . 1 Propulsion 2 | . . 2 Utility 1 | . . 1 Weapon 2 | . . 2 Highest Loss Streak 4 | . . 4 To Critical Strikes . | . . . Average Backups 4 | 1 3 7 Power . | . . . Propulsion . | . . 1 Utility 2 | . 1 2 Weapon 1 | . 1 2 Tool/Special . | . . . Unused Backups 3 | 2 . 1 Power . | . . . Propulsion 2 | 2 . . Utility 1 | . . 1 Weapon . | . . . Tool/Special . | . . . Average Slot Usage (%) 95 | . 98 92 Engine 12 | . 14 10 Leg 27 | . 28 26 Device 13 | . 12 13 Storage 14 | . 14 14 Energy Gun 12 | . 14 10 Ballistic Gun 3 | . 3 2 Launcher 11 | . 10 12 Peak Build Rating 8 | 6 7 8 Average Rating 6 | 4 6 6 On Entrance 4 | . 6 7 Naked Turns . | . . . Heaviest Build 19 | 11 19 19 Greatest Support 20 | 20 20 20 Greatest Overweight (x) 4 | 1 . 4 Average Overweight (x) . | . . . Largest Inventory Capacity 10 | 8 10 10 Average Capacity 9 | 7 9 10 Most Carried 8 | 7 7 8 Average Carried 4 | 1 3 7 Final Capacity 10 | 8 10 10 Final Carried 7 | 2 7 3 Class Distribution -------------------- 100% | Mutant Dominant Class ---------------- Mutant | -10/Materials Mutant | -10/Mines Resources | -11 -10 -10 ----------- Run | Yrd Mat Min Matter Collected 397 | 268 74 55 Remotely . | . . . Salvage Created 498 | 110 225 163 Parts 39 | 7 22 10 Haulers Intercepted 1 | . 1 . Recyclers Shooed . | . . . Parts Field Recycled . | . . . Retrieved Matter . | . . . Parts Self-Destructed . | . . . Prevented . | . . . Kills | -11 -10 -10 ------- Run | Yrd Mat Min Combat Hostiles Destroyed 16 | . 8 8 Guns 7 | . 4 3 AOE 9 | . 4 5 Classes Destroyed 9 | 2 4 3 Worker 2 | . . 2 Tunneler 1 | 1 . . Hauler 1 | . 1 . Recycler 1 | 1 . . Watcher 1 | . 1 . Swarmer 8 | . 6 2 Grunt 5 | . 2 3 Demolisher 1 | . . 1 Assembled 2 | . . 2 Best Kill Streak 5 | 2 4 5 Combat Bots Only 4 | . 3 4 Max Kills in Single Turn 3 | 1 3 3 Gunslinging 1 | . 1 . Exploded 2 | . 2 2 Melee . | . . . Uniques/NPCs Destroyed . | . . . Combat | -11 -10 -10 -------- Run | Yrd Mat Min Hostile Shots Fired 68 | . 15 53 Missed 18 | . 5 13 Hits 50 | . 10 40 Melee 2 | . . 2 Projectile 48 | . 10 38 AOE 7 | . . 7 Critical Strikes 1 | . . 1 Damage Taken 718 | . 69 649 Core 256 | . 12 244 Absorbed by Shields . | . . . Redirected to Shielding 2 | . . 2 Ignored by Resistances 206 | . 21 185 Core Remaining (%) 100 | 100 . . Volleys Fired 42 | 8 8 26 Largest 2 | 2 2 2 Hottest 70 | 60 70 70 Shots Fired 68 | 16 16 36 Gun 50 | 16 12 22 Cannon . | . . . Launcher 18 | . 4 14 Special . | . . . Kinetic 23 | 8 4 11 Thermal . | . . . Explosive 18 | . 4 14 Electromagnetic 27 | 8 8 11 Robot Hit Streak 10 | 4 10 7 Robot Miss Streak 2 | 2 1 1 Penetration Max . | . . . Secondary Targets 1 | . 1 . Max Gunslinging Chain 1 | . 1 . Shots Hit Robots 41 | 7 11 23 Core Hits 43 | 3 11 29 Critical Kills . | . . . Critical Parts Destroyed . | . . . Critical Strikes 1 | . . 1 Corrupt 1 | . . 1 Melee Attacks . | . . . Impact . | . . . Slashing . | . . . Piercing . | . . . Sneak Attacks . | . . . Combat Hostiles . | . . . Follow-up Attacks . | . . . Damage Inflicted 1150 | 71 315 764 Guns 324 | 71 105 148 Cannons . | . . . Explosions 826 | . 210 616 Melee . | . . . Ramming . | . . . Kinetic 108 | 20 27 61 Thermal . | . . . Explosive 826 | . 210 616 Electromagnetic 216 | 51 78 87 Impact . | . . . Slashing . | . . . Piercing . | . . . Highest Corruption . | . . . Average Corruption . | . . . Corruption Purged . | . . . Corruption Blocked . | . . . Overload Shots . | . . . Overflow Damage . | . . . Projectiles . | . . . Explosions . | . . . Melee . | . . . Knockbacks . | . . . Impact . | . . . Kinetic . | . . . Secondary . | . . . Self-Inflicted Damage 70 | . . 70 Shots 5 | . . 5 Rammed . | . . . Targets Rammed . | . . . Kicked . | . . . Crushed . | . . . Highest Temperature 42 | 40 40 42 Average Temperature 16 | 21 13 15 Received Heat Transfer 123 | . 6 117 Siege Activations . | . . . Martial Activations . | . . . Shielding Activations . | . . . Robots Disrupted . | . . . Combat Hostiles . | . . . Robots Corrupted . | . . . Combat Hostiles . | . . . Parts Fried . | . . . Impact Corruptions . | . . . Robots Melted . | . . . Combat Hostiles . | . . . Parts Melted . | . . . Heat Transferred . | . . . Parts Sabotaged . | . . . Parts Stolen . | . . . Parts Stripped . | . . . Power Chain Reactions . | . . . Alert | -11 -10 -10 ------- Run | Yrd Mat Min Maximum Alert Level . | . . . Low Security (%) 100 | 100 100 100 Level 1 . | . . . Level 2 . | . . . Level 3 . | . . . Level 4 . | . . . Level 5 . | . . . High Security . | . . . Max Security . | . . . Peak Influence 127 | 5 127 111 Initial 5 | . . 5 Average 48 | . 68 38 Influence Increases 510 | 10 237 263 Destroy 0b10 Robot/C 280 | . 160 120 Destroy 0b10 Robot/NC 30 | 10 10 10 Destroy Leader 64 | . 24 40 Successful Hack 7 | . 7 . Destroy Structure 99 | . 36 63 Lose Combat Pursuer 30 | . . 30 Influence Decreases 477 | 10 220 247 Entered New Map 12 | . . 12 Time Decay 405 | 10 220 175 Lost Part 60 | . . 60 Squads Dispatched 1 | . 1 . Investigation 1 | . 1 . Extermination . | . . . Reinforcement . | . . . Assault . | . . . Garrison . | . . . Intercept . | . . . Searches Triggered . | . . . Construction Impeded . | . . . Haulers Reinforced . | . . . Active Scanning Responses . | . . . Cargo Convoy Interrupts . | . . . Stealth | -11 -10 -10 --------- Run | Yrd Mat Min Distress Signals 1 | . 1 . Communications Jammed . | . . . Distress Signals . | . . . Times Spotted 30 | . 13 17 Peak Tracking Total 4 | . 4 4 Tactical Retreats 1 | . . 1 Traps | -11 -10 -10 ------- Run | Yrd Mat Min Traps Triggered 1 | . 1 . Indirectly . | . . . Trap Hack Attempts . | . . . Triggered . | . . . Disarmed . | . . . Reprogrammed . | . . . Reused . | . . . Traps Extracted . | . . . Installed . | . . . Triggered . | . . . Machines | -11 -10 -10 ---------- Run | Yrd Mat Min Machines Disabled . | . . . Max in Single Turn . | . . . Machines Repaired . | . . . Machines Dismantled . | . . . Machines Sabotaged . | . . . Overloaded Fab Kills . | . . . Hacking | -11 -10 -10 --------- Run | Yrd Mat Min Machines Accessed 3 | . 3 . Terminals 3 | . 3 . Fabricators . | . . . Repair Stations . | . . . Recycling Units . | . . . Scanalyzers . | . . . Garrison Access . | . . . Total Hacks 7 | . 7 . Successful 3 | . 3 . Failed 4 | . 4 . Catastrophic 1 | . 1 . Database Lockouts . | . . . Manual 5 | . 5 . Terminals 7 | . 7 . Fabricators . | . . . Repair Stations . | . . . Recycling Units . | . . . Scanalyzers . | . . . Garrison Access . | . . . Terminal Hacks 3 | . 3 . Branch Access Points 1 | . 1 . Locate Traps 1 | . 1 . Zone Layout 1 | . 1 . Fabricator Hacks . | . . . Repair Station Hacks . | . . . Recycling Unit Hacks . | . . . Scanalyzer . | . . . Garrison Access Hacks . | . . . Unauthorized Hacks . | . . . Terminals . | . . . Fabricators . | . . . Repair Stations . | . . . Recycling Units . | . . . Scanalyzers . | . . . Garrison Access . | . . . Data Cores Recovered . | . . . Used . | . . . Hacking Detections 2 | . 2 . Full Trace Events . | . . . Feedback Events . | . . . Feedback Blocked . | . . . Robot Schematics Acquired . | . . . Robots Built . | . . . Authchips . | . . . Time . | . . . Total Robot Build Rating . | . . . Part Schematics Acquired . | . . . Parts Built . | . . . Authchips . | . . . Time . | . . . Total Part Build Rating . | . . . Parts Repaired . | . . . Time . | . . . Parts Recycled . | . . . Recycled Matter . | . . . Retrieved Matter . | . . . Retrieved Components . | . . . Parts Scanalyzed . | . . . Part Schematics Acquired . | . . . Parts Damaged . | . . . Bothacking | -11 -10 -10 ------------ Run | Yrd Mat Min Used RIF Installer . | . . . Robots Hacked . | . . . Non-combat . | . . . Combat . | . . . Robot Hacks Applied . | . . . Relay Couplers Released . | . . . Fabnet Peak Effective % . | . . . Robots Rewired . | . . . Allies Hacked . | . . . Hacks Repelled . | . . . Allies | -11 -10 -10 -------- Run | Yrd Mat Min Total Allies . | . . . Largest Group . | . . . Highest-Rated Group . | . . . Highest-Rated Ally . | . . . Total Orders . | . . . Ally Attacks . | . . . Total Damage . | . . . Kills . | . . . Allies Corrupted . | . . . Allies Melted . | . . . Intel | -11 -10 -10 ------- Run | Yrd Mat Min Active Infowar (turns) 943 | . 471 472 Seismic 943 | . 471 472 Robot Analysis Total . | . . . Derelict Logs Recovered . | . . . Drone Launches . | . . . Drone Recoveries . | . . . Exploration | -11 -10 -10 ------------- Run | Yrd Mat Min Turns Passed 1091 | 115 498 478 Spaces Moved 749 | 72 354 323 Core 34 | 31 . 3 Treads . | . . . Legs 715 | 41 354 320 Wheels . | . . . Hover . | . . . Flight . | . . . Fastest Speed 50 | 50 120 120 Average Speed 119 | 96 120 124 Slowest Speed 250 | 120 120 250 Overloaded Moves . | . . . Propulsion Burnouts . | . . . Robots Hopped . | . . . Potential Cave-ins . | . . . Cave-ins Triggered . | . . . Exploration Rate (%) 38 | 5 58 53 Regions Visited 2 Branch Regions 1 Pre-discovered Areas . | . . . Known Exits Taken 1 | . 1 . Unknown Exits Taken 1 | 1 . . Scrap Searched 1 | . . 1 Spaces Dug . | . . . Terrain Destroyed 120 | . 34 86 Melee . | . . . Projectile . | . . . AOE 120 | . 34 86 Terrain Rammed . | . . . Walls Destroyed . | . . . Machines Disabled . | . . . Actions | -11 -10 -10 --------- Run | Yrd Mat Min Total 881 | 103 411 367 Wait 60 | 7 41 12 Move 747 | 71 353 323 Hop . | . . . Pick Up 16 | 9 6 1 Fast Attach 1 | 1 . . Attach 11 | 5 1 5 Detach . | . . . Swap 2 | . 2 . Drop 2 | 2 . . Fire 42 | 8 8 26 Melee . | . . . Ram . | . . . Kick . | . . . Crush . | . . . Escape Stasis . | . . . Rewire . | . . . Trap . | . . . Miscellaneous . | . . . Route ------- -11/Scrapyard -10/Materials (discovered 3 exits: [*Mat x2] / *Min) -10/Mines (discovered 1 exit: [*Sub]) History --------- Turn | Location | Event 14 | -11/Scrapyard | Discovered new exit (range 15) 116 | -11/Scrapyard | Entered Materials 224 | -10/Materials | Identified exit to Mines 311 | -10/Materials | Build established: Mutant 344 | -10/Materials | Discovered new exit (range 9) 423 | -10/Materials | Discovered new exit (range 3) 614 | -10/Materials | Entered Mines 712 | -10/Mines | Met a Derelict bent on vengeance 916 | -10/Mines | Discovered new exit (range 10) 954 | -10/Mines | Assembled infested the area 1007 | -10/Mines | Core integrity fell below 50% 1031 | -10/Mines | Lost 4 parts (1p1n2w) 1039 | -10/Mines | Core integrity fell below 20% 1092 | -10/Mines | Destroyed by G-34 Mercenary with Small Laser Last Messages --------------- The unstable cave ceiling collapses. U-05 Engineer lays Concrete. The unstable cave ceiling collapses. U-05 Engineer lays Concrete. U-05 Engineer builds a Wall. as-89363 sneak attacks. T-07 Excavator destroyed. Acquired 14 matter. The unstable cave ceiling collapses. U-05 Engineer builds a Wall. Acquired 11 matter. T-07 Excavator destroyed. U-05 Engineer lays Concrete. U-05 Engineer builds a Wall. as-89363 sneak attacks. U-05 Engineer destroyed. Aluminum Leg destroyed. as-89363 destroyed. as-27093 destroyed. Seismic Detector destroyed. Map ----- +----------------------------------------------------+ | ?## ####### % # = ## # #???????? | | ## ##????## #### ### # #???????? | | # [*##?????# ##?## # #????????? | | # % ##????## % ##?## # ####????????? | | ## ##???## #??#########???????????? | | ?###### # #??## #??????????????????????? | | ?????# # %###?## ## ##??????????????????????? | | #????### ##### ##?###???????????????????????? | | ######## ##???????????????????????????? | | #### ##??????????????????????????? | | #####?## #??????????????????????????? | | ##### #?????# #??????????????????????????? | | #???# #?????# ##?????????????????????????? | | ????# #?????## ##????????????????????????? | | ????# #??????## ##???????????????????????? | | ????# #???????## ##??????????????????????? | | ????# #????????# ##?????????????????????? | | ????# #????????# #?????????????????????? | | ????# #????????# ##????????????????????? | | ????# #????????# ##???????????????????? | | ????# #???????## #???????????????????? | | ????# ##?????## #???????????????????? | | ???## ##????# ### ##???????????????????? | | ???# ##???# # #???????????????????? | | ???## ##??## #???????????????????? | | ????## #???## @ #???????####?????????? | | ????## #????## ## #??#### ###???????? | | ????# ##????## ###### #### #???????? | | ????# #?????####????# g #??????? | | ????## #?????????????# #????????????? | | ?????## ##?????????????#### g ##????????????? | | ??????#####?????????????????## #????????????? | | ?????????????????????????????# ####????????? | | ??????????????????????????????# ##???????? | | ???????????????????????????????# #???????? | | ??????????????????????????????## """ ##??????? | | ???????????????################ """ ##?????? | | ???????????????# """ ####??? | | ???????????????# #??? | | ???????????????# ########### #?? | | ???????????????# #?????????## ###### #?? | | ???????????????# #??????????# ##????## #?? | | ???????????????#%=#??????????# #??????## #? | | ???????????????#[ #??????????# #???????## | | ??????????????? #??????????# #????????#### # | | ??????????????? ?????????? #????????????# ## | | ?????????????? ##?????????####?????????????###? | | ?????????????? ##??????????????????????????????? | | ?????????????####????????????????????????????????? | | ?????????????????????????????????????????????????? | +----------------------------------------------------+ Best States ------------- Heat Dissipation 25 Energy Generation 10 Energy Capacity 125 Matter Stores 300 Matter Capacity 300 Sight Range 16 Terrain Scan Density 10 Resistance: KI 20 Resistance: TH 20 Resistance: EX 20 Resistance: EM 20 Resistance: I 20 Resistance: S 20 Resistance: P 20 Weapon Shielding 33 Evasion (%) 55 Offensive Hacking 10 Item Schematics ----------------- None Robot Schematics ------------------ None Fabricated ------------ Nothing Repaired ---------- Nothing Alien Tech Used ----------------- None Achievements -------------- None Challenges ------------ None Game ------ Seed PhasingReactionStrikerail Manual? 0 Play Time 00:11:05 Cumulative 72.5 hours Start 2025.06.30 @ 17:10:29 End 2025.06.30 @ 17:25:02 Sessions 3 Manual Loads 0 Difficulty Adventurer Special Mode None Game No. 70 Rogue 0 Adventurer 70 Explorer 0 Win Type - Total 1 Types 1/0/0/0/0/0/0/0/0/0 Lore% 46 Gallery% 44 Achievement% 44 Wizard Run 0 Options --------- Layout 1 ASCII 0 Keyboard 0 Movement Mouse Keybinds 0 Fullscreen 1 Font 32/SmallcapsGlow Map View 50x40 Zoom Use 0% Tactical HUD 0 Map Filters NONE Filters NONE Steam 1 RUN: 63c3f26c-a93e-414a-ba80-ef8c6e6971b1